fUST/lending_fUST_20240527
["ID","MTS","AMOUNT","RATE_DAILY","PERIOD"]
[327989529,1716757853209,274.18094634,9.999e-05,2]
[327989530,1716757857613,2091.60298051,9.999e-05,2]
[327989536,1716757879598,643.57850209,9.999e-05,2]
[327989541,1716758062795,395.73690521,9.999e-05,2]
[327989542,1716758095133,521.87992401,9.999e-05,2]
[327989544,1716758355788,2090.65173461,9.999e-05,2]
[327989545,1716758375637,2088.61920915,9.999e-05,2]
[327989546,1716758381405,9295.35324241,9.999e-05,2]
[327989548,1716758541437,7211.06896399,9.999e-05,2]
[327989549,1716758547667,697.36236629,9.999e-05,2]
[327989550,1716758557454,5652.1143369,9.999e-05,2]
[327989551,1716758599431,14483.99895244,9.999e-05,2]
[327989552,1716758610085,194.65850964,9.999e-05,2]
[327989553,1716758716462,371.61497995,9.999e-05,2]
[327989668,1716759038479,-1044.31672066,0.00018879,2]
[327989669,1716759038489,-521.87992401,0.0001888,2]
[327989670,1716759038498,-395.73690521,0.00018881,2]
[327989671,1716759038507,-4046.4714774,0.00018881,2]
[327989717,1716759044775,-1822.58705801,0.00018881,2]
[327989719,1716759044787,-1000.0,0.00018881,2]
[327989721,1716759044801,-3593.92270321,0.00018881,2]
[327989723,1716759044811,-220.57708135,0.000189,2]
[327989725,1716759044820,-2416.7256715,0.00018923,2]
[327989727,1716759044833,-2215.53504188,0.0002,2]
[327989728,1716759044843,-1143.89970046,0.0002,2]
[327989730,1716759044853,-1351.93473586,0.00020913,2]
[327989732,1716759044862,-293.01535619,0.0002099,2]
[327989734,1716759044872,-181.11191058,0.0002099,2]
[327989736,1716759044882,-166.666666,0.00021918,2]
[327989737,1716759044891,-812.09735779,0.000223,6]
[327989738,1716759044900,-166.666666,0.00022431,2]
[327989740,1716759044910,-1068.6911192,0.000225,2]
[327989742,1716759044919,-151.0,0.00022667,3]
[327989744,1716759044929,-166.666666,0.00022944,2]
[327989745,1716759044938,-4697.14874934,0.00023,2]
[327989746,1716759044947,-166.666666,0.00023456,2]
[327989747,1716759044957,-151.0,0.00023515,5]
[327989748,1716759044967,-220.57708135,0.000239,2]
[327989749,1716759044977,-166.666666,0.00023969,2]
[327989750,1716759044986,-151.0,0.00024364,5]
[327989751,1716759044995,-742.32373,0.00024384,2]
[327989752,1716759045004,-453.585177,0.00024384,2]
[327989753,1716759045014,-166.666666,0.00024482,2]
[327989754,1716759045024,-380.0,0.00024658,2]
[327989755,1716759045033,-196.58706323,0.000249,2]
[327989756,1716759045043,-13375.73791579,0.00025,2]
[327989757,1716759045053,-401.16149513,0.00025,2]
[327989758,1716759045063,-174.77770949,0.00025,2]
[327989759,1716759045074,-151.0,0.00025212,5]
[327989760,1716759045084,-291.7186327,0.00025452,2]
[327989761,1716759045094,-291.7186327,0.00025452,2]
[327989762,1716759045103,-151.0,0.00026061,5]
[327989763,1716759045112,-291.7186327,0.00026164,2]
[327989764,1716759045121,-291.7186327,0.00026164,2]
[327989765,1716759045130,-196.58706319,0.00026329,2]
[327989766,1716759045140,-921.76314443,0.00026589,2]
[327989767,1716759045149,-151.0,0.00026909,7]
[327989768,1716759045159,-878.2568296,0.00027487,2]
[327989769,1716759045172,-962.49756129,0.00027609,2]
[327989770,1716759045183,-196.58706319,0.00027757,2]
[327989771,1716759045193,-151.0,0.00027758,7]
[327989772,1716759045202,-14582.90217197,0.0002776,2]
[327989773,1716759045212,-2365.52,0.0002788,3]
[327989774,1716759045222,-362.09647764,0.00027888,2]
[327989775,1716759045232,-195.17023155,0.00027889,2]
[327989776,1716759045241,-1172.20394038,0.0002789,3]
[327989777,1716759045545,-1721.50625403,0.0002789,3]
[327989778,1716759045559,-1804.323423,0.0002789,3]
[327989779,1716759045571,-11606.24638044,0.0002789,3]
[327989780,1716759045583,-596.98274629,0.0002789,3]
[327989793,1716759061786,690.95275409,9.999e-05,2]
[327989794,1716759065350,1583.07627159,9.999e-05,2]
[327989795,1716759068070,281.83220357,9.999e-05,2]
[327989796,1716759069654,455.92409776,9.999e-05,2]
[327989797,1716759081035,514.21922606,9.999e-05,2]
[327989798,1716759084121,836.37406668,9.999e-05,2]
[327989799,1716759278474,3633.2531206,9.999e-05,2]
[327989800,1716759300393,1896.4992881,9.999e-05,2]
[327989801,1716759300421,45.99009924,9.999e-05,2]
[327989805,1716759534433,164.02008532,9.999e-05,2]
[327989806,1716759818618,3890.0,0.00028,120]
[327989822,1716760158967,970.0,0.000275,30]
[327989884,1716760235385,-521.87992401,0.00018879,2]
[327989886,1716760235395,-2900.02007599,0.0001888,2]
[327989888,1716760235406,-165.2397786,0.0001888,2]
[327989890,1716760235416,-690.95275409,0.0001888,2]
[327989892,1716760235425,-514.21922606,0.00018881,2]
[327989893,1716760235434,-395.73690521,0.00018882,2]
[327989895,1716760235444,-1044.31672066,0.00018882,2]
[327989897,1716760235453,-4292.30669841,0.0001889,2]
[327989933,1716760240153,-1881.06080549,0.0001889,2]
[327989934,1716760240162,-164.945318,0.00019178,2]
[327989935,1716760240172,-1160.23538078,0.0002,2]
[327989936,1716760240181,-2728.38553095,0.0002,2]
[327989937,1716760240191,-1351.93473586,0.0002,2]
[327989938,1716760240201,-181.11191058,0.00020625,2]
[327989939,1716760240211,-1143.89970046,0.00020913,2]
[327989940,1716760240221,-325.90603048,0.00020916,2]
[327989941,1716760240230,-163.345509,0.00020963,2]
[327989942,1716760240240,-166.666666,0.00021918,2]
[327989943,1716760240250,-166.666666,0.00022431,2]
[327989944,1716760240259,-151.0,0.00022693,3]
[327989945,1716760240269,-166.666666,0.00022944,2]
[327989946,1716760240278,-166.666666,0.00023456,2]
[327989947,1716760240291,-166.666666,0.00023969,2]
[327989948,1716760240300,-430.905918,0.00024384,2]
[327989949,1716760240310,-82.09810987,0.00024384,2]
[327989950,1716760240323,-637.59541113,0.00024384,2]
[327989952,1716760240332,-5691.96599687,0.00024397,2]
[327989954,1716760240390,-2688.65594462,0.00024397,2]
[327989955,1716760240399,-496.0,0.00024443,2]
[327989956,1716760240408,-166.666666,0.00024482,2]
[327989957,1716760240418,-174.77770949,0.00025103,2]
[327989958,1716760240428,-401.16149513,0.00025103,2]
[327989959,1716760240437,-163.8225527,0.00025104,2]
[327989960,1716760240446,-6423.66201429,0.00025787,2]
[327989961,1716760240459,-2649.0228513,0.00025787,2]
[327990060,1716760245450,-747.61001408,0.00025787,2]
[327990062,1716760245462,-3555.44303612,0.00025787,2]
[327990063,1716760245471,-3187.41728433,0.00025788,2]
[327990065,1716760245481,-150.0,0.000259,2]
[327990066,1716760245490,-420.299999,0.000266,2]
[327990068,1716760245499,-163.82255265,0.00026763,2]
[327990069,1716760245510,-4226.56801723,0.00027433,2]
[327990070,1716760245519,-10354.79267935,0.00027484,2]
[327990079,1716760246277,-13715.87121697,0.00027484,2]
[327990081,1716760246289,-456.67881276,0.000275,2]
[327990083,1716760246299,-154.93802479,0.000275,2]
[327990085,1716760246309,-3981.96955357,0.000275,2]
[327990086,1716760246318,-151.0,0.00027561,2]
[327990087,1716760246327,-151.0,0.00027561,2]
[327990088,1716760246337,-300.0,0.000276,2]
[327990089,1716760246347,-441.62112131,0.00027788,2]
[327990090,1716760246356,-441.62112123,0.000278,2]
[327990091,1716760246366,-441.62112123,0.00027813,2]
[327990092,1716760246375,-441.62112123,0.00027825,2]
[327990093,1716760246385,-441.62112123,0.00027838,2]
[327990094,1716760246394,-441.62112123,0.0002785,2]
[327990095,1716760246403,-441.62112123,0.00027863,2]
[327990096,1716760246412,-441.62112123,0.00027875,2]
[327990097,1716760246422,-1140.78,0.0002788,3]
[327990098,1716760246431,-1781.14,0.0002788,3]
[327990099,1716760246440,-441.62112123,0.00027888,2]
[327990100,1716760246449,-720.04961309,0.00027888,2]
[327990101,1716760246458,-2192.06667311,0.00027888,2]
[327990115,1716760246910,-5492.29059994,0.00027888,2]
[327990116,1716760246920,-388.90728382,0.00027888,2]
[327990117,1716760246929,-211.66795767,0.00027888,2]
[327990118,1716760246938,-1107.74465443,0.00027888,2]
[327990119,1716760246950,-435.37910408,0.00027888,2]
[327990120,1716760246959,-158.58875339,0.00027888,2]
[327990121,1716760246969,-1067.68920432,0.00027888,2]
[327990126,1716760264092,154.93802479,9.999e-05,2]
[327990175,1716761432115,-1044.31672066,0.00019171,2]
[327990176,1716761432129,-395.73690521,0.00019172,2]
[327990177,1716761432143,-690.95275409,0.00019173,2]
[327990178,1716761432156,-163.345509,0.00019178,2]
[327990179,1716761432169,-521.87992401,0.00019755,2]
[327990180,1716761432182,-521.87992401,0.00019755,2]
[327990181,1716761432196,-745.1889105,0.00019763,2]
[327990182,1716761432209,-1143.89970046,0.0002,2]
[327990183,1716761432223,-181.11191058,0.00020625,2]
[327990184,1716761432236,-1480.88004148,0.00020913,2]
[327990185,1716761432254,-977.66446904,0.00020913,2]
[327990186,1716761432267,-4857.01626588,0.000215,2]
[327990231,1716761443862,-305.11294712,0.000215,2]
[327990232,1716761443873,-166.666666,0.00021918,2]
[327990233,1716761443882,-166.666666,0.00022431,2]
[327990234,1716761443892,-166.666666,0.00022944,2]
[327990235,1716761443901,-166.666666,0.00023456,2]
[327990236,1716761443912,-28.22038888,0.00023969,2]
[327990243,1716761446284,-138.44627712,0.00023969,2]
[327990244,1716761446293,-409.360622,0.00024384,2]
[327990245,1716761446302,-143.59310088,0.00024384,2]
[327990247,1716762156156,135.05179065,9.999e-05,2]
[327990292,1716762632297,-839.11375686,9.997e-05,2]
[327990295,1716762632309,-848.54825264,9.997e-05,2]
[327990431,1716763832760,-1586.21617874,9.991e-05,2]
[327990433,1716763832772,-1415.9412425,9.991e-05,2]
[327990435,1716763832783,-63.10243335,9.991e-05,2]
[327990437,1716763832793,-186.89756665,9.992e-05,2]
[327990440,1716763832805,-332.38819351,9.992e-05,2]
[327990442,1716763832816,-287.92256871,9.992e-05,2]
[327990493,1716763838714,-237.10839179,9.992e-05,2]
[327990495,1716763838724,-395.73690521,9.993e-05,2]
[327990496,1716763838735,-291.99610679,9.994e-05,2]
[327990498,1716763838746,-154.93802479,9.997e-05,2]
[327990500,1716763838756,-2197.27982111,9.997e-05,2]
[327990502,1716763838768,-996.20511983,9.997e-05,2]
[327993072,1716764723512,3152.3561543,8.827e-05,2]
[327993073,1716764777881,10572.72052667,8.827e-05,2]
[327993074,1716764933292,837.617847,7.218e-05,2]
[327993097,1716764955350,4218.0348353,7.177e-05,2]
[327993098,1716764978476,16162.53876454,7.177e-05,2]
[327993099,1716764990038,299.71956484,7.177e-05,2]
[327993100,1716764994395,7895.18423697,7.177e-05,2]
[327993101,1716765005908,263.73361231,7.177e-05,2]
[327993142,1716765032103,-239.04002635,7.264e-05,2]
[327993143,1716765032113,-146.9721465,7.265e-05,2]
[327993416,1716765038100,-488.34156332,7.263e-05,2]
[327993417,1716765038110,-154.93802479,7.263e-05,2]
[327993418,1716765038120,-154.93802479,7.263e-05,2]
[327993419,1716765038129,-47.68636314,7.265e-05,2]
[327993420,1716765038139,-1340.26998009,7.265e-05,2]
[327993421,1716765038148,-281.83220357,7.266e-05,2]
[327993422,1716765038158,-175.78295392,7.266e-05,2]
[327993423,1716765038167,-252.38453504,7.267e-05,2]
[327993424,1716765038288,-261.83469102,7.267e-05,2]
[327993426,1716765038298,-1583.07627159,7.269e-05,2]
[327993428,1716765038307,-250.0,7.272e-05,2]
[327993429,1716765038317,-2305.8056569,7.901e-05,2]
[327993430,1716765038327,-3634.41600598,8.827e-05,2]
[327993431,1716765038336,-1375.85832152,9.207e-05,2]
[327993452,1716765042033,-20886.5,9.207e-05,2]
[327993454,1716765042044,-503.96475741,9.207e-05,2]
[327993570,1716765043220,-2133.67692107,9.207e-05,2]
[327993573,1716765043230,-1044.31672066,9.983e-05,2]
[327993575,1716765043239,-4412.864829,9.984e-05,2]
[327993576,1716765043248,-155.9750952,9.997e-05,2]
[327993579,1716765043257,-223.79761603,9.997e-05,2]
[327993580,1716765043266,-1300.45442628,9.997e-05,2]
[327993672,1716765044130,-4614.11176734,9.997e-05,2]
[327993674,1716765044145,-32.08682077,9.997e-05,2]
[327993676,1716765044156,-155.03208842,9.997e-05,2]
[327993678,1716765044166,-1002.61874234,0.0001,2]
[327993948,1716765046879,-134.98081895,0.0001,2]
[327993950,1716765046889,-13665.47945423,0.0001,2]
[327993968,1716765047047,-672.2517208,0.0001,2]
[327994759,1716765286932,-154.93802479,7.994e-05,2]
[327994760,1716765286955,-42009.85148102,7.994e-05,2]
[327994761,1716765286975,-154.93802479,7.995e-05,2]
[327994762,1716765286994,-7902.09549174,7.995e-05,2]
[327994763,1716765287014,-2637.19054963,7.995e-05,2]
[327994764,1716765287033,-3065.25985459,7.995e-05,2]
[327994765,1716765287054,-4094.39395085,7.996e-05,2]
[327994766,1716765287074,-41015.13228979,7.996e-05,2]
[327994767,1716765287096,-3631.05621732,8e-05,2]
[327994768,1716765287116,-246.81,0.00010959,2]
[327994769,1716765287137,-205.68,0.00010959,2]
[327994770,1716765287158,-171.4,0.00010959,2]
[327994771,1716765287178,-857.0,0.00010959,2]
[327994772,1716765287198,-151.0,0.00013699,2]
[327994773,1716765287224,-151.0,0.00013699,2]
[327994774,1716765287244,-159.848839,0.00013699,2]
[327994775,1716765287266,-1053.457557,0.00013699,2]
[327994776,1716765287291,-151.0,0.00013699,2]
[327994777,1716765287313,-151.0,0.00013699,2]
[327994778,1716765287335,-151.0,0.00013699,2]
[327994779,1716765287358,-151.0,0.00013699,2]
[327994780,1716765287379,-238.031442,0.00013699,2]
[327994781,1716765287399,-154.93802479,0.00015,2]
[327994782,1716765287424,-1686.19052172,0.00015,2]
[327994783,1716765287445,-1098.17565538,0.00015,2]
[327994784,1716765287467,-22248.5162799,0.00016586,2]
[327994785,1716765287487,-203.63716121,0.00018052,2]
[327994786,1716765287508,-3000.0,0.00018063,2]
[327994787,1716765287528,-3317.0223783,0.00018067,2]
[327994788,1716765287548,-150.0,0.000189,2]
[327994789,1716765287673,-184.73882062,0.000191,2]
[327994790,1716765287695,-163.345509,0.00019178,2]
[327994791,1716765287715,-164.145414,0.00019178,2]
[327994792,1716765287736,-176.700061,0.00019178,2]
[327994793,1716765287757,-181.11191058,0.0002,2]
[327994794,1716765287779,-1639.0801197,0.0002,2]
[327994795,1716765287800,-1143.89970046,0.0002,2]
[327994796,1716765287821,-1351.93473586,0.0002,2]
[327994797,1716765287846,-325.70900667,0.0002047,2]
[327994798,1716765287874,-493.62,0.00020538,3]
[327994799,1716765287894,-1053.457557,0.00020548,2]
[327994800,1716765287916,-500.0,0.000215,2]
[327994801,1716765287939,-150.0,0.000215,2]
[327994802,1716765287964,-987.24,0.00021908,3]
[327994803,1716765287986,-166.666666,0.00021918,2]
[327994804,1716765288007,-166.666666,0.00022431,2]
[327994805,1716765288028,-166.666666,0.00022944,2]
[327994806,1716765288049,-151.0,0.00022963,3]
[327994807,1716765288070,-166.666666,0.00023456,2]
[327994808,1716765288093,-150.0,0.000239,2]
[327994809,1716765288113,-155.78675729,0.00023969,2]
[327994995,1716766238294,-1279.26662071,9.993e-05,2]
[327994998,1716766238305,-690.95275409,9.994e-05,2]
[327995000,1716766238314,-7902.09549174,9.994e-05,2]
[327995002,1716766238325,-836.37406668,9.995e-05,2]
[327995004,1716766238334,-1497.56271984,9.995e-05,2]
[327995005,1716766238344,-371.61497995,9.995e-05,2]
[327995007,1716766238353,-285.35051707,9.996e-05,2]
[327995009,1716766238363,-455.92409776,9.996e-05,2]
[327995011,1716766238373,-156.6263305,9.997e-05,2]
[327995014,1716766238384,-175.78295392,9.998e-05,2]
[327995016,1716766238394,-239.20246285,9.999e-05,2]
[327995017,1716766238404,-922.0747966,0.00014,2]
[327995020,1716766238414,-16434.95487818,0.0001423,2]
[327995022,1716766238426,-8465.04512182,0.0001423,2]
[327995024,1716766238440,-3019.12112828,0.00014767,2]
[327995034,1716766238525,-3368.57495305,0.00014767,2]
[327995252,1716766242751,-916.65407287,9.993e-05,2]
[327995255,1716766242763,-5327.40349907,0.00014767,2]
[327995258,1716766242774,-1098.17565538,0.00015,2]
[327995261,1716766242784,-3317.0223783,0.00015246,2]
[327995263,1716766242794,-3000.0,0.00015246,2]
[327995266,1716766242803,-1183.503077,0.00015441,2]
[327995268,1716766242813,-325.70900667,0.00015683,2]
[327995270,1716766242822,-203.63716121,0.00018,2]
[327995272,1716766242832,-150.0,0.000189,2]
[327995274,1716766242842,-168.063661,0.00019178,2]
[327995276,1716766242851,-164.145414,0.00019178,2]
[327995278,1716766242861,-181.11191058,0.0002,2]
[327995279,1716766242871,-1143.89970046,0.0002,2]
[327995282,1716766242881,-1351.93473586,0.00020888,2]
[327995284,1716766242891,-2109.39586792,0.00020889,2]
[327995286,1716766242900,-609.7,0.00020902,3]
[327995288,1716766242910,-304.85,0.00020902,3]
[327995290,1716766242920,-152.43,0.00020902,3]
[327995291,1716766242930,-457.31,0.00020902,3]
[327995294,1716766242940,-160.27099543,0.0002091,2]
[327995297,1716766242950,-261.30468809,0.0002091,2]
[327995301,1716766242960,-309.72126324,0.0002091,2]
[327995305,1716766242970,-528.89075591,0.0002091,2]
[327995309,1716766242980,-551.07722985,0.0002091,2]
[327995313,1716766242990,-720.49251095,0.0002091,2]
[327995316,1716766243000,-731.68055019,0.0002091,2]
[327995320,1716766243013,-211.6837492,0.0002091,2]
[327995323,1716766243023,-403.88807297,0.0002091,2]
[327995326,1716766243033,-34353.92817784,0.00020912,2]
[327995615,1716766246446,-1686.19052172,0.00015,2]
[327995616,1716766246456,-11914.66011859,0.00020912,2]
[327995617,1716766246465,-1057.1252514,0.00020913,2]
[327995618,1716766246475,-41985.7992439,0.00020913,2]
[327995619,1716766246484,-150.0,0.000215,2]
[327995620,1716766246493,-166.666666,0.00021918,2]
[327995621,1716766246502,-1219.4,0.00022272,3]
[327995622,1716766246511,-609.7,0.00022272,3]
[327995623,1716766246520,-304.86,0.00022272,3]
[327995624,1716766246529,-166.666666,0.00022431,2]
[327995625,1716766246538,-151.0,0.00022731,3]
[327995626,1716766246547,-166.666666,0.00022944,2]
[327995639,1716766246667,-1183.503077,0.00023162,2]
[327995641,1716766246676,-166.666666,0.00023456,2]
[327995643,1716766246687,-204.7013805,0.00023597,2]
[327995645,1716766246696,-204.7013805,0.00023597,2]
[327995647,1716766246705,-204.7013805,0.00023597,2]
[327995649,1716766246714,-204.7013805,0.00023597,2]
[327995651,1716766246722,-204.7013805,0.00023597,2]
[327995653,1716766246732,-204.7013805,0.00023597,2]
[327995655,1716766246741,-153.0,0.00023597,2]
[327995657,1716766246750,-204.7013805,0.00023597,2]
[327995659,1716766246760,-153.0,0.00023597,2]
[327995661,1716766246769,-153.0,0.00023597,2]
[327995663,1716766246778,-153.0,0.00023597,2]
[327995665,1716766246788,-153.0,0.00023597,2]
[327995666,1716766246797,-154.93802479,0.00023729,2]
[327995668,1716766246806,-150.0,0.000239,2]
[327995670,1716766246815,-155.04636224,0.00023969,2]
[327995672,1716766246824,-2540.9690608,0.00023969,2]
[327995676,1716766246844,-1441.00049277,0.00023969,2]
[327995678,1716766246854,-166.666666,0.00023969,2]
[327995680,1716766246863,-200.0,0.0002411,2]
[327995682,1716766246872,-1281.91599087,0.00024383,2]
[327995684,1716766246884,-618.79862836,0.00024383,2]
[328006876,1716767811721,1027.8590387,6.394e-05,2]
[328006877,1716767827162,-215.89463454,7.386e-05,2]
[328006878,1716767827183,-1979.44134486,7.387e-05,2]
[328006879,1716767827204,-395.73690521,7.387e-05,2]
[328006880,1716767827225,-302.61666796,7.388e-05,2]
[328006881,1716767827246,-773.03341614,7.388e-05,2]
[328006882,1716767827266,-403.88807297,7.389e-05,2]
[328006883,1716767827288,-836.37406668,7.389e-05,2]
[328006884,1716767827308,-455.92409776,7.389e-05,2]
[328006885,1716767827330,-281.83220357,7.39e-05,2]
[328006886,1716767827351,-524.3209427,7.39e-05,2]
[328006887,1716767827372,-231.05856354,7.391e-05,2]
[328006888,1716767827393,-1901.804382,7.391e-05,2]
[328006889,1716767827414,-194.65850964,7.392e-05,2]
[328006890,1716767827434,-291.99610679,7.392e-05,2]
[328006891,1716767827454,-175.78295392,7.393e-05,2]
[328006892,1716767827475,-371.61497995,7.393e-05,2]
[328006893,1716767827495,-68114.72683638,7.396e-05,2]
[328006894,1716767827517,-2549.29531539,7.397e-05,2]
[328006895,1716767837489,16162.53876454,6.394e-05,2]
[328006896,1716767851410,7049.22524709,6.394e-05,2]
[328006897,1716767882986,365.28202794,6.394e-05,2]
[328006898,1716767898470,365.28202794,6.394e-05,2]
[328006899,1716767922470,365.00314632,6.394e-05,2]
[328006900,1716767975111,622.3094675,6.387e-05,2]
[328006901,1716767982750,406.5154117,6.389e-05,2]
[328006902,1716768022547,250.0,6.388e-05,2]
[328006903,1716768082977,514.8955851,6.383e-05,2]
[328006904,1716768111687,1242.9520561,6.431e-05,2]
[328006906,1716768226714,7174.1285203,6.367e-05,2]
[328006907,1716768472819,1660.2084783,6.4e-05,2]
[328006908,1716768473945,2003.6920177,6.349e-05,2]
[328006909,1716768559030,230.5616504,6.343e-05,2]
[328006931,1716768633273,-916.97949432,7.324e-05,2]
[328006932,1716768633282,-302.61666796,7.325e-05,2]
[328006933,1716768633292,-3065.25985459,7.325e-05,2]
[328006934,1716768633301,-1340.26998009,7.326e-05,2]
[328006935,1716768633310,-1044.31672066,7.326e-05,2]
[328006936,1716768633319,-231.05856354,7.326e-05,2]
[328006937,1716768633329,-30273.56554692,7.326e-05,2]
[328006938,1716768633340,-255.0,7.326e-05,2]
[328006939,1716768633356,-820.00266018,7.326e-05,2]
[328006962,1716768638986,-395.73690521,7.324e-05,2]
[328006963,1716768638996,-403.88807297,7.324e-05,2]
[328006964,1716768639006,-285.35051707,7.324e-05,2]
[328006965,1716768639015,-1899.66876087,7.324e-05,2]
[328006966,1716768639025,-6725.5491234,7.326e-05,2]
[328006967,1716768639046,-3014.21883897,7.326e-05,2]
[328006968,1716768639058,-797.46,7.326e-05,2]
[328006988,1716768643955,-154.93802479,7.323e-05,2]
[328006989,1716768643964,-26228.93066691,7.326e-05,2]
[328006990,1716768643974,-291.99610679,7.327e-05,2]
[328006991,1716768643983,-2600.19484313,7.327e-05,2]
[328006992,1716768643993,-7902.09549174,7.327e-05,2]
[328006993,1716768644003,-42009.85148102,7.331e-05,2]
[328006994,1716768644013,-521.0,7.334e-05,2]
[328006995,1716768644023,-551.16749439,7.335e-05,2]
[328006997,1716768644035,-800.17221586,7.363e-05,2]
[328006998,1716768644050,-2681.27163775,7.389e-05,2]
[328007000,1716768644059,-4094.39395085,7.393e-05,2]
[328007002,1716768644070,-772.3920059,7.394e-05,2]
[328007004,1716768644080,-834.83299088,7.395e-05,2]
[328007006,1716768644092,-963.55859001,7.396e-05,2]
[328007008,1716768644102,-281.29504829,7.396e-05,2]
[328007009,1716768644111,-215.7842305,7.396e-05,2]
[328007011,1716768644123,-455.02255224,7.396e-05,2]
[328007013,1716768644133,-24900.0,7.397e-05,2]
[328007014,1716768644143,-1447.3033902,8e-05,2]
[328007015,1716768644152,-800.17221584,0.00010649,2]
[328007016,1716768644162,-283.89725164,0.000137,2]
[328007017,1716768644171,-922.0747966,0.00014,2]
[328007018,1716768644181,-800.17221584,0.00014035,2]
[328007019,1716768644191,-1686.19052172,0.00015,2]
[328007020,1716768644200,-800.17221584,0.00017421,2]
[328007021,1716768644210,-184.73882062,0.000191,2]
[328007022,1716768644219,-168.063661,0.00019178,2]
[328007023,1716768644228,-181.11191058,0.0002,2]
[328007024,1716768644238,-1639.0801197,0.0002,2]
[328007025,1716768644247,-1143.89970046,0.0002,2]
[328007026,1716768644257,-1351.93473586,0.0002,2]
[328007027,1716768644266,-499.01030098,0.0002,2]
[328007028,1716768644276,-800.17221584,0.00020807,2]
[328007029,1716768644285,-325.87288803,0.00020905,2]
[328007030,1716768644294,-175.42634425,0.00020906,2]
[328007031,1716768644304,-1880.30382516,0.00020906,2]
[328007032,1716768644314,-523.01612629,0.00020907,2]
[328007033,1716768644323,-174.21563739,0.00020907,4]
[328007034,1716768644333,-2947.87493952,0.00020907,2]
[328007035,1716768644750,-5450.00910992,0.00020907,2]
[328007042,1716769335401,154.93802479,7.25e-05,2]
[328007043,1716769338231,154.93802479,7.25e-05,2]
[328007044,1716769339081,156.6263305,7.25e-05,2]
[328007045,1716769340161,154.93802479,7.25e-05,2]
[328007046,1716769342707,1583.07627159,7.25e-05,2]
[328007047,1716769343631,395.73690521,7.25e-05,2]
[328007048,1716769343685,231.05856354,7.25e-05,2]
[328007049,1716769345528,2032.55675413,7.25e-05,2]
[328007050,1716769346675,181.62091911,7.25e-05,2]
[328007051,1716769347640,154.93802479,7.25e-05,2]
[328007052,1716769348145,690.95275409,7.249e-05,2]
[328007053,1716769348931,154.93802479,7.249e-05,2]
[328007054,1716769349890,154.93802479,7.249e-05,2]
[328007055,1716769353583,154.93802479,7.25e-05,2]
[328007056,1716769358425,154.93802479,7.25e-05,2]
[328007057,1716769358815,175.78295392,7.25e-05,2]
[328007058,1716769358929,261.36166647,7.25e-05,2]
[328007059,1716769373235,207.77887759,7.25e-05,2]
[328007060,1716769373279,524.3209427,7.25e-05,2]
[328007061,1716769373524,2637.19054963,7.25e-05,2]
[328007062,1716769374201,455.92409776,7.25e-05,2]
[328007063,1716769375815,720.72103566,7.25e-05,2]
[328007064,1716769379245,154.93802479,7.25e-05,2]
[328007065,1716769379292,158.69093162,7.25e-05,2]
[328007066,1716769379939,551.22362293,7.25e-05,2]
[328007067,1716769380807,239.04002635,7.25e-05,2]
[328007068,1716769382003,1340.26998009,7.25e-05,2]
[328007069,1716769383220,302.61666796,7.25e-05,2]
[328007070,1716769388046,154.93802479,7.25e-05,2]
[328007071,1716769389054,2600.19484313,7.25e-05,2]
[328007072,1716769404075,916.97949432,7.25e-05,2]
[328007073,1716769418681,154.93802479,7.25e-05,2]
[328007074,1716769422000,395.73690521,7.25e-05,2]
[328007075,1716769422653,690.95275409,7.25e-05,2]
[328007076,1716769428413,154.93802479,7.25e-05,2]
[328007077,1716769452013,154.93802479,7.25e-05,2]
[328007078,1716769468273,154.93802479,7.25e-05,2]
[328007079,1716769471840,285.35051707,7.25e-05,2]
[328007080,1716769474812,455.92409776,7.25e-05,2]
[328007081,1716769497807,3065.25985459,7.25e-05,2]
[328007082,1716769528738,154.93802479,7.25e-05,2]
[328007083,1716769545008,410.91438715,7.25e-05,2]
[328007084,1716769582592,2637.19054963,7.25e-05,2]
[328007085,1716769621426,410.91438715,7.25e-05,2]
[328007088,1716769642415,773.03341614,7.25e-05,2]
[328007091,1716769766652,720.72103566,7.25e-05,2]
[328007092,1716769803122,371.61497995,7.25e-05,2]
[328007102,1716769832630,-291.99610679,7.251e-05,2]
[328007103,1716769832639,-2537.02415409,7.252e-05,2]
[328007104,1716769832652,-528.2357005,7.252e-05,2]
[328007105,1716769832661,-732.35914582,7.253e-05,2]
[328007106,1716769832671,-215.87580332,7.253e-05,2]